[Event "Titled Tuesday Blitz December 27 Early 2022"]
[White "Fernandez Siles, Luis"]
[Black "Adel, Sara"]
[WhiteFideId "2209420"]
[BlackFideId "10616764"]
[WhiteElo "2218"]
[BlackElo "1739"]
[Result "1-0"]
[Round "05"]
[TimeControl "180+2"]
[Date "2022.12.27"]
[WhiteClock "0:00:04"]
[BlackClock "0:00:07"]

1. d4 {[%clk 0:03:00]}  Nf6 {[%clk 0:02:59]} 2. c4 {[%clk 0:03:00]}  g6 {[%clk 0:02:59]} 3. Nc3 {[%clk 0:03:00]}  Bg7 {[%clk 0:03:00]} 4. e4 {[%clk 0:03:00]}  d6 {[%clk 0:03:00]} 5. Nf3 {[%clk 0:03:00]}  Nbd7 {[%clk 0:02:59]} 6. Be2 {[%clk 0:02:59]}  e5 {[%clk 0:02:59]} 7. O-O {[%clk 0:02:59]}  O-O {[%clk 0:02:59]} 8. Re1 {[%clk 0:02:55]}  Qe7 {[%clk 0:02:55]} 9. Bf1 {[%clk 0:02:52]}  Nh5 {[%clk 0:02:35]} 10. g3 {[%clk 0:02:44]}  c6 {[%clk 0:02:28]} 11. Be3 {[%clk 0:02:17]}  h6 {[%clk 0:01:26]} 12. Qd2 {[%clk 0:01:50]}  Kh7 {[%clk 0:01:26]} 13. dxe5 {[%clk 0:01:20]}  Nxe5 {[%clk 0:01:06]} 14. Nxe5 {[%clk 0:01:20]}  dxe5 {[%clk 0:00:33]} 15. f3 {[%clk 0:01:17]}  Rd8 {[%clk 0:00:31]} 16. Qc2 {[%clk 0:01:09]}  Be6 {[%clk 0:00:30]} 17. c5 {[%clk 0:01:05]}  f5 {[%clk 0:00:26]} 18. exf5 {[%clk 0:01:01]}  Bxf5 {[%clk 0:00:27]} 19. Ne4 {[%clk 0:00:57]}  Nf6 {[%clk 0:00:20]} 20. Bd3 {[%clk 0:00:51]}  Bh3 {[%clk 0:00:13]} 21. Nxf6+ {[%clk 0:00:45]}  Qxf6 {[%clk 0:00:14]} 22. Be4 {[%clk 0:00:45]}  Rd7 {[%clk 0:00:14]} 23. Rad1 {[%clk 0:00:37]}  Rad8 {[%clk 0:00:14]} 24. Rxd7 {[%clk 0:00:36]}  Rxd7 {[%clk 0:00:15]} 25. Rd1 {[%clk 0:00:36]}  Rxd1+ {[%clk 0:00:14]} 26. Qxd1 {[%clk 0:00:37]}  Bf8 {[%clk 0:00:14]} 27. b4 {[%clk 0:00:36]}  Qe7 {[%clk 0:00:14]} 28. Qd3 {[%clk 0:00:29]}  Qe6 {[%clk 0:00:13]} 29. Qc2 {[%clk 0:00:25]}  Bf5 {[%clk 0:00:12]} 30. a3 {[%clk 0:00:20]}  Be7 {[%clk 0:00:11]} 31. g4 {[%clk 0:00:20]}  Bxe4 {[%clk 0:00:10]} 32. Qxe4 {[%clk 0:00:20]}  Bf6 {[%clk 0:00:09]} 33. h4 {[%clk 0:00:19]}  Qb3 {[%clk 0:00:09]} 34. h5 {[%clk 0:00:18]}  Qd1+ {[%clk 0:00:09]} 35. Kg2 {[%clk 0:00:16]}  Qe2+ {[%clk 0:00:10]} 36. Bf2 {[%clk 0:00:13]}  Qxe4 {[%clk 0:00:08]} 37. fxe4 {[%clk 0:00:11]}  gxh5 {[%clk 0:00:09]} 38. gxh5 {[%clk 0:00:11]}  Bg5 {[%clk 0:00:10]} 39. Kf3 {[%clk 0:00:09]}  Bc1 {[%clk 0:00:11]} 40. a4 {[%clk 0:00:07]}  Bd2 {[%clk 0:00:11]} 41. b5 {[%clk 0:00:07]}  cxb5 {[%clk 0:00:11]} 42. axb5 {[%clk 0:00:07]}  a5 {[%clk 0:00:07]} 43. c6 {[%clk 0:00:07]}  bxc6 {[%clk 0:00:04]} 44. bxc6 {[%clk 0:00:07]}  Bg5 {[%clk 0:00:04]} 45. c7 {[%clk 0:00:06]}  Bd8 {[%clk 0:00:05]} 46. cxd8=Q {[%clk 0:00:05]}  a4 {[%clk 0:00:06]} 47. Qe7+ {[%clk 0:00:05]}  Kg8 {[%clk 0:00:06]} 48. Qe8+ {[%clk 0:00:04]}  Kg7 {[%clk 0:00:06]} 49. Bg3 {[%clk 0:00:05]}  a3 {[%clk 0:00:06]} 50. Bxe5+ {[%clk 0:00:04]}  Kh7 {[%clk 0:00:07]} 51. Qf7# {[%clk 0:00:04]} 1-0


[Site "https://www.chess.com"]

[Event "Titled Tuesday Blitz December 27 Early 2022"]
[White "Ferreira, Vitor Hugo Vieira"]
[Black "Piesik, Piotr"]
[WhiteFideId "2119765"]
[BlackFideId "1136194"]
[WhiteElo "2128"]
[BlackElo "2426"]
[Result "1-0"]
[Round "05"]
[TimeControl "180+2"]
[Date "2022.12.27"]
[WhiteClock "0:02:14"]
[BlackClock "0:01:33"]

1. e4 {[%clk 0:02:56]}  g6 {[%clk 0:02:59]} 2. d4 {[%clk 0:02:55]}  Bg7 {[%clk 0:03:00]} 3. Nf3 {[%clk 0:02:55]}  c6 {[%clk 0:03:00]} 4. Nc3 {[%clk 0:02:54]}  d6 {[%clk 0:03:00]} 5. Be2 {[%clk 0:02:53]}  Nf6 {[%clk 0:03:01]} 6. O-O {[%clk 0:02:53]}  O-O {[%clk 0:03:01]} 7. Re1 {[%clk 0:02:53]}  Nbd7 {[%clk 0:03:01]} 8. Bf1 {[%clk 0:02:52]}  e5 {[%clk 0:03:02]} 9. h3 {[%clk 0:02:50]}  Qc7 {[%clk 0:03:00]} 10. Be3 {[%clk 0:02:48]}  b5 {[%clk 0:03:00]} 11. a3 {[%clk 0:02:48]}  a5 {[%clk 0:02:56]} 12. Qd2 {[%clk 0:02:47]}  Rb8 {[%clk 0:02:48]} 13. b4 {[%clk 0:02:44]}  Ra8 {[%clk 0:02:38]} 14. d5 {[%clk 0:02:37]}  axb4 {[%clk 0:02:38]} 15. axb4 {[%clk 0:02:35]}  Rxa1 {[%clk 0:02:39]} 16. Rxa1 {[%clk 0:02:35]}  cxd5 {[%clk 0:02:39]} 17. Nxb5 {[%clk 0:02:31]}  Qb8 {[%clk 0:02:13]} 18. Ba7 {[%clk 0:02:29]}  Nxe4 {[%clk 0:01:53]} 19. Bxb8 {[%clk 0:02:23]}  Nxd2 {[%clk 0:01:52]} 20. Bxd6 {[%clk 0:02:18]}  Nxf3+ {[%clk 0:01:52]} 21. gxf3 {[%clk 0:02:18]}  Re8 {[%clk 0:01:52]} 22. Nc7 {[%clk 0:02:16]}  e4 {[%clk 0:01:37]} 23. Ra8 {[%clk 0:02:14]}  Rd8 {[%clk 0:01:33]} 24. Be7 {[%clk 0:02:14]} 1-0


[Site "https://www.chess.com"]

[Event "Titled Tuesday Blitz December 27 Early 2022"]
[White "Firouzja, Alireza"]
[Black "Perez Ponsa, Federico"]
[WhiteFideId "12573981"]
[BlackFideId "117927"]
[WhiteElo "2785"]
[BlackElo "2532"]
[Result "1-0"]
[Round "05"]
[TimeControl "180+2"]
[Date "2022.12.27"]
[WhiteClock "0:00:14"]
[BlackClock "0:00:07"]

1. e4 {[%clk 0:02:53]}  c5 {[%clk 0:02:59]} 2. Nf3 {[%clk 0:02:49]}  d6 {[%clk 0:03:00]} 3. d4 {[%clk 0:02:48]}  cxd4 {[%clk 0:03:01]} 4. Nxd4 {[%clk 0:02:48]}  Nf6 {[%clk 0:03:01]} 5. Nc3 {[%clk 0:02:48]}  a6 {[%clk 0:03:02]} 6. Be2 {[%clk 0:02:46]}  e5 {[%clk 0:03:02]} 7. Nb3 {[%clk 0:02:46]}  Be7 {[%clk 0:03:01]} 8. Be3 {[%clk 0:02:46]}  Be6 {[%clk 0:03:00]} 9. O-O {[%clk 0:02:45]}  O-O {[%clk 0:03:00]} 10. a4 {[%clk 0:02:43]}  Nbd7 {[%clk 0:02:59]} 11. a5 {[%clk 0:02:43]}  Rc8 {[%clk 0:02:47]} 12. Re1 {[%clk 0:02:39]}  Rxc3 {[%clk 0:02:26]} 13. bxc3 {[%clk 0:02:40]}  Nxe4 {[%clk 0:02:27]} 14. Bf3 {[%clk 0:02:38]}  f5 {[%clk 0:02:21]} 15. c4 {[%clk 0:02:02]}  Bxc4 {[%clk 0:02:01]} 16. Nd2 {[%clk 0:01:56]}  Nxd2 {[%clk 0:01:38]} 17. Qxd2 {[%clk 0:01:57]}  e4 {[%clk 0:01:38]} 18. Be2 {[%clk 0:01:55]}  Qc7 {[%clk 0:01:38]} 19. Bxc4+ {[%clk 0:01:47]}  Qxc4 {[%clk 0:01:39]} 20. Rab1 {[%clk 0:01:47]}  Qc6 {[%clk 0:01:36]} 21. c4 {[%clk 0:01:41]}  Ne5 {[%clk 0:01:35]} 22. Qd5+ {[%clk 0:01:39]}  Qxd5 {[%clk 0:01:03]} 23. cxd5 {[%clk 0:01:40]}  Nc4 {[%clk 0:01:03]} 24. Rxb7 {[%clk 0:01:34]}  Bd8 {[%clk 0:01:03]} 25. Bd4 {[%clk 0:01:17]}  Rf7 {[%clk 0:00:53]} 26. Rb8 {[%clk 0:01:16]}  Rf8 {[%clk 0:00:54]} 27. Rc1 {[%clk 0:01:16]}  Nxa5 {[%clk 0:00:47]} 28. Rcc8 {[%clk 0:01:17]}  Be7 {[%clk 0:00:47]} 29. Rxf8+ {[%clk 0:01:17]}  Bxf8 {[%clk 0:00:47]} 30. Rb4 {[%clk 0:01:18]}  Be7 {[%clk 0:00:41]} 31. Ba7 {[%clk 0:00:58]}  Bf6 {[%clk 0:00:39]} 32. Bb8 {[%clk 0:00:55]}  Bc3 {[%clk 0:00:37]} 33. Rb6 {[%clk 0:00:55]}  Be5 {[%clk 0:00:34]} 34. Bxd6 {[%clk 0:00:51]}  Nc4 {[%clk 0:00:34]} 35. Rb8+ {[%clk 0:00:47]}  Kf7 {[%clk 0:00:35]} 36. Rb7+ {[%clk 0:00:48]}  Kf6 {[%clk 0:00:30]} 37. Be7+ {[%clk 0:00:46]}  Kf7 {[%clk 0:00:27]} 38. Ra7 {[%clk 0:00:30]}  a5 {[%clk 0:00:20]} 39. Bd8+ {[%clk 0:00:25]}  Ke8 {[%clk 0:00:17]} 40. Bxa5 {[%clk 0:00:25]}  Nxa5 {[%clk 0:00:14]} 41. Rxa5 {[%clk 0:00:25]}  Kd7 {[%clk 0:00:13]} 42. Ra6 {[%clk 0:00:25]}  f4 {[%clk 0:00:11]} 43. Kf1 {[%clk 0:00:22]}  e3 {[%clk 0:00:11]} 44. fxe3 {[%clk 0:00:21]}  fxe3 {[%clk 0:00:12]} 45. Ke2 {[%clk 0:00:21]}  Bxh2 {[%clk 0:00:11]} 46. Ra7+ {[%clk 0:00:18]}  Kd6 {[%clk 0:00:08]} 47. Rxg7 {[%clk 0:00:19]}  h5 {[%clk 0:00:05]} 48. Kxe3 {[%clk 0:00:17]}  h4 {[%clk 0:00:02]} 49. Ke4 {[%clk 0:00:17]}  Bg3 {[%clk 0:00:03]} 50. Rg6+ {[%clk 0:00:17]}  Kd7 {[%clk 0:00:03]} 51. Rh6 {[%clk 0:00:18]}  Ke7 {[%clk 0:00:03]} 52. d6+ {[%clk 0:00:16]}  Bxd6 {[%clk 0:00:02]} 53. Rxh4 {[%clk 0:00:16]}  Kf7 {[%clk 0:00:03]} 54. Kf5 {[%clk 0:00:16]}  Be7 {[%clk 0:00:04]} 55. Rh7+ {[%clk 0:00:16]}  Kf8 {[%clk 0:00:04]} 56. Rxe7 {[%clk 0:00:13]}  Kxe7 {[%clk 0:00:05]} 57. Kg6 {[%clk 0:00:13]}  Kf8 {[%clk 0:00:05]} 58. g4 {[%clk 0:00:12]}  Kg8 {[%clk 0:00:06]} 59. g5 {[%clk 0:00:13]}  Kh8 {[%clk 0:00:07]} 60. Kf7 {[%clk 0:00:13]}  Kh7 {[%clk 0:00:07]} 61. g6+ {[%clk 0:00:14]} 1-0


[Site "https://www.chess.com"]

[Event "Titled Tuesday Blitz December 27 Early 2022"]
[White "Goltseva, Ekaterina"]
[Black "Petrovic, Aleksa"]
[WhiteFideId "24173770"]
[BlackFideId "967629"]
[WhiteElo "2283"]
[BlackElo "2332"]
[Result "1-0"]
[Round "05"]
[TimeControl "180+2"]
[Date "2022.12.27"]
[WhiteClock "0:01:06"]
[BlackClock "0:00:05"]

1. d4 {[%clk 0:02:21]}  Nf6 {[%clk 0:02:58]} 2. c4 {[%clk 0:02:21]}  e6 {[%clk 0:02:58]} 3. g3 {[%clk 0:02:20]}  d5 {[%clk 0:02:56]} 4. Bg2 {[%clk 0:02:08]}  dxc4 {[%clk 0:02:53]} 5. Nf3 {[%clk 0:02:06]}  Bd7 {[%clk 0:02:50]} 6. Ne5 {[%clk 0:02:03]}  Bc6 {[%clk 0:02:47]} 7. Nxc6 {[%clk 0:02:04]}  Nxc6 {[%clk 0:02:47]} 8. e3 {[%clk 0:02:04]}  Qd7 {[%clk 0:02:43]} 9. O-O {[%clk 0:02:03]}  Rd8 {[%clk 0:02:42]} 10. Qe2 {[%clk 0:02:03]}  e5 {[%clk 0:02:33]} 11. Qxc4 {[%clk 0:01:59]}  exd4 {[%clk 0:02:29]} 12. Rd1 {[%clk 0:01:58]}  d3 {[%clk 0:02:24]} 13. Qb5 {[%clk 0:01:52]}  Be7 {[%clk 0:01:07]} 14. Qxb7 {[%clk 0:01:40]}  Ne5 {[%clk 0:01:04]} 15. f4 {[%clk 0:01:31]}  Qg4 {[%clk 0:00:24]} 16. Nc3 {[%clk 0:01:25]}  O-O {[%clk 0:00:06]} 17. fxe5 {[%clk 0:01:22]}  Bb4 {[%clk 0:00:04]} 18. exf6 {[%clk 0:01:13]}  Bxc3 {[%clk 0:00:04]} 19. Bf3 {[%clk 0:01:13]}  Qc4 {[%clk 0:00:03]} 20. bxc3 {[%clk 0:01:13]}  d2 {[%clk 0:00:04]} 21. Bxd2 {[%clk 0:01:10]}  Rxd2 {[%clk 0:00:04]} 22. Rxd2 {[%clk 0:01:09]}  Qxc3 {[%clk 0:00:05]} 23. Qb2 {[%clk 0:01:05]}  Qxe3+ {[%clk 0:00:05]} 24. Rf2 {[%clk 0:01:06]} 1-0


[Site "https://www.chess.com"]

[Event "Titled Tuesday Blitz December 27 Early 2022"]
[White "Graca, Robert"]
[Black "Jimenez, Joaquin"]
[WhiteFideId "644943"]
[BlackFideId "109860"]
[WhiteElo "2270"]
[BlackElo "2195"]
[Result "1-0"]
[Round "05"]
[TimeControl "180+2"]
[Date "2022.12.27"]
[WhiteClock "0:00:11"]
[BlackClock "0:00:10"]

1. Nf3 {[%clk 0:03:00]}  Nf6 {[%clk 0:02:44]} 2. c4 {[%clk 0:02:59]}  g6 {[%clk 0:02:43]} 3. Nc3 {[%clk 0:03:00]}  Bg7 {[%clk 0:02:43]} 4. e4 {[%clk 0:03:00]}  d6 {[%clk 0:02:43]} 5. d4 {[%clk 0:03:01]}  O-O {[%clk 0:02:43]} 6. Be2 {[%clk 0:03:02]}  e5 {[%clk 0:02:43]} 7. Be3 {[%clk 0:03:02]}  Ng4 {[%clk 0:02:41]} 8. Bg5 {[%clk 0:03:02]}  f6 {[%clk 0:02:41]} 9. Bh4 {[%clk 0:03:02]}  Nc6 {[%clk 0:02:40]} 10. d5 {[%clk 0:03:02]}  Ne7 {[%clk 0:02:37]} 11. Nd2 {[%clk 0:03:03]}  Nh6 {[%clk 0:02:36]} 12. f3 {[%clk 0:03:00]}  f5 {[%clk 0:02:24]} 13. b4 {[%clk 0:02:57]}  a5 {[%clk 0:02:23]} 14. a3 {[%clk 0:02:56]}  Nf7 {[%clk 0:02:21]} 15. c5 {[%clk 0:02:54]}  g5 {[%clk 0:02:20]} 16. Bf2 {[%clk 0:02:53]}  f4 {[%clk 0:02:21]} 17. Nc4 {[%clk 0:02:46]}  axb4 {[%clk 0:02:17]} 18. axb4 {[%clk 0:02:47]}  Rxa1 {[%clk 0:02:17]} 19. Qxa1 {[%clk 0:02:48]}  Ng6 {[%clk 0:02:17]} 20. cxd6 {[%clk 0:02:43]}  Nxd6 {[%clk 0:02:15]} 21. Nxd6 {[%clk 0:02:36]}  cxd6 {[%clk 0:02:15]} 22. Nb5 {[%clk 0:02:34]}  Rf6 {[%clk 0:02:11]} 23. Qa7 {[%clk 0:02:17]}  Bf8 {[%clk 0:02:08]} 24. Bb6 {[%clk 0:02:13]}  Qe8 {[%clk 0:02:01]} 25. Qb8 {[%clk 0:02:03]}  Bd7 {[%clk 0:01:57]} 26. Qxe8 {[%clk 0:01:59]}  Bxe8 {[%clk 0:01:57]} 27. Kf2 {[%clk 0:01:56]}  h5 {[%clk 0:01:44]} 28. h3 {[%clk 0:01:55]}  Bd7 {[%clk 0:01:38]} 29. Rc1 {[%clk 0:01:52]}  g4 {[%clk 0:01:38]} 30. hxg4 {[%clk 0:01:50]}  hxg4 {[%clk 0:01:38]} 31. fxg4 {[%clk 0:01:44]}  f3 {[%clk 0:01:36]} 32. gxf3 {[%clk 0:01:28]}  Bxg4 {[%clk 0:01:35]} 33. Rg1 {[%clk 0:01:27]}  Bh5 {[%clk 0:01:27]} 34. Nc7 {[%clk 0:01:20]}  Kf7 {[%clk 0:01:12]} 35. Ne6 {[%clk 0:01:14]}  Be7 {[%clk 0:00:59]} 36. Be3 {[%clk 0:01:08]}  Rxe6 {[%clk 0:00:30]} 37. dxe6+ {[%clk 0:01:04]}  Kxe6 {[%clk 0:00:30]} 38. Rc1 {[%clk 0:01:01]}  Bh4+ {[%clk 0:00:24]} 39. Kf1 {[%clk 0:00:58]}  d5 {[%clk 0:00:21]} 40. exd5+ {[%clk 0:00:43]}  Kxd5 {[%clk 0:00:21]} 41. Rc7 {[%clk 0:00:43]}  Ne7 {[%clk 0:00:21]} 42. Rxb7 {[%clk 0:00:37]}  Nf5 {[%clk 0:00:21]} 43. Bf2 {[%clk 0:00:36]}  Bg5 {[%clk 0:00:18]} 44. Rb5+ {[%clk 0:00:30]}  Kd6 {[%clk 0:00:17]} 45. Rb6+ {[%clk 0:00:29]}  Kd5 {[%clk 0:00:17]} 46. Bd3 {[%clk 0:00:20]}  Nd4 {[%clk 0:00:16]} 47. Be4+ {[%clk 0:00:19]}  Kc4 {[%clk 0:00:16]} 48. Bxd4 {[%clk 0:00:14]}  Kxd4 {[%clk 0:00:16]} 49. Rb8 {[%clk 0:00:11]}  Bf7 {[%clk 0:00:15]} 50. b5 {[%clk 0:00:09]}  Bc4+ {[%clk 0:00:15]} 51. Kf2 {[%clk 0:00:10]}  Be3+ {[%clk 0:00:14]} 52. Kg3 {[%clk 0:00:10]}  Bf4+ {[%clk 0:00:15]} 53. Kg4 {[%clk 0:00:11]}  Kc5 {[%clk 0:00:15]} 54. b6 {[%clk 0:00:10]}  Ba6 {[%clk 0:00:13]} 55. b7 {[%clk 0:00:10]}  Kb6 {[%clk 0:00:10]} 56. Ra8 {[%clk 0:00:10]}  Bxb7 {[%clk 0:00:10]} 57. Rb8 {[%clk 0:00:11]} 1-0


[Site "https://www.chess.com"]

[Event "Titled Tuesday Blitz December 27 Early 2022"]
[White "Graham, Nathaniel"]
[Black "Bringas Gomez, Artai"]
[WhiteFideId "2007983"]
[BlackFideId "24534064"]
[WhiteElo "2262"]
[BlackElo "2206"]
[Result "0-1"]
[Round "05"]
[TimeControl "180+2"]
[Date "2022.12.27"]
[WhiteClock "0:00:05"]
[BlackClock "0:00:17"]

1. e4 {[%clk 0:02:55]}  c6 {[%clk 0:03:00]} 2. d4 {[%clk 0:02:54]}  d5 {[%clk 0:03:00]} 3. Nd2 {[%clk 0:02:53]}  dxe4 {[%clk 0:03:00]} 4. Nxe4 {[%clk 0:02:54]}  Nd7 {[%clk 0:03:00]} 5. Bc4 {[%clk 0:02:53]}  Ngf6 {[%clk 0:03:00]} 6. Nxf6+ {[%clk 0:02:53]}  Nxf6 {[%clk 0:03:00]} 7. c3 {[%clk 0:02:53]}  e6 {[%clk 0:02:55]} 8. Nf3 {[%clk 0:02:53]}  Bd6 {[%clk 0:02:55]} 9. O-O {[%clk 0:02:53]}  Qc7 {[%clk 0:02:52]} 10. Bg5 {[%clk 0:02:52]}  h6 {[%clk 0:02:51]} 11. Bh4 {[%clk 0:02:51]}  b6 {[%clk 0:02:20]} 12. Qe2 {[%clk 0:02:48]}  Nd5 {[%clk 0:02:14]} 13. Ne5 {[%clk 0:02:30]}  Bb7 {[%clk 0:01:58]} 14. Bxd5 {[%clk 0:02:27]}  cxd5 {[%clk 0:01:56]} 15. Qb5+ {[%clk 0:02:26]}  Kf8 {[%clk 0:01:54]} 16. f4 {[%clk 0:02:08]}  a5 {[%clk 0:01:45]} 17. Rf3 {[%clk 0:01:50]}  Ba6 {[%clk 0:01:44]} 18. Qb3 {[%clk 0:01:50]}  g5 {[%clk 0:01:16]} 19. fxg5 {[%clk 0:01:35]}  Bxe5 {[%clk 0:01:16]} 20. dxe5 {[%clk 0:01:32]}  Bc4 {[%clk 0:01:11]} 21. Qa3+ {[%clk 0:01:09]}  Kg8 {[%clk 0:01:03]} 22. gxh6 {[%clk 0:00:57]}  Rxh6 {[%clk 0:01:02]} 23. Bf6 {[%clk 0:00:44]}  Kh7 {[%clk 0:00:56]} 24. Rg3 {[%clk 0:00:19]}  Rg8 {[%clk 0:00:45]} 25. Rxg8 {[%clk 0:00:19]}  Kxg8 {[%clk 0:00:46]} 26. b3 {[%clk 0:00:19]}  Bd3 {[%clk 0:00:41]} 27. Rd1 {[%clk 0:00:15]}  Be4 {[%clk 0:00:25]} 28. c4 {[%clk 0:00:15]}  Rg6 {[%clk 0:00:20]} 29. Qa4 {[%clk 0:00:15]}  Rxg2+ {[%clk 0:00:19]} 30. Kf1 {[%clk 0:00:16]}  Qc8 {[%clk 0:00:16]} 31. cxd5 {[%clk 0:00:12]}  exd5 {[%clk 0:00:16]} 32. Qb5 {[%clk 0:00:06]}  Qf5+ {[%clk 0:00:16]} 33. Ke1 {[%clk 0:00:05]}  Qf2# {[%clk 0:00:17]} 0-1


[Site "https://www.chess.com"]

[Event "Titled Tuesday Blitz December 27 Early 2022"]
[White "Guevara Sanchez, Erick Marvin"]
[Black "Viskelis, Darius"]
[WhiteFideId "6700136"]
[BlackFideId "12800830"]
[WhiteElo "2073"]
[BlackElo "2166"]
[Result "0-1"]
[Round "05"]
[TimeControl "180+2"]
[Date "2022.12.27"]
[WhiteClock "0:00:01"]
[BlackClock "0:00:07"]

1. e4 {[%clk 0:02:59]}  c6 {[%clk 0:02:55]} 2. d4 {[%clk 0:02:59]}  g6 {[%clk 0:02:54]} 3. Nc3 {[%clk 0:02:57]}  Bg7 {[%clk 0:02:54]} 4. Nf3 {[%clk 0:02:50]}  d5 {[%clk 0:02:49]} 5. e5 {[%clk 0:02:48]}  Bg4 {[%clk 0:02:45]} 6. Be2 {[%clk 0:02:48]}  Nh6 {[%clk 0:02:44]} 7. h3 {[%clk 0:02:46]}  Bxf3 {[%clk 0:02:44]} 8. Bxf3 {[%clk 0:02:46]}  Nf5 {[%clk 0:02:45]} 9. O-O {[%clk 0:02:41]}  e6 {[%clk 0:02:42]} 10. Bf4 {[%clk 0:02:30]}  Qh4 {[%clk 0:02:40]} 11. Be3 {[%clk 0:02:24]}  c5 {[%clk 0:02:39]} 12. dxc5 {[%clk 0:02:13]}  Bxe5 {[%clk 0:02:35]} 13. Re1 {[%clk 0:02:06]}  Nc6 {[%clk 0:02:30]} 14. Bd2 {[%clk 0:01:50]}  O-O {[%clk 0:02:18]} 15. a3 {[%clk 0:01:35]}  a5 {[%clk 0:02:14]} 16. Rb1 {[%clk 0:01:29]}  Bd4 {[%clk 0:01:50]} 17. Be3 {[%clk 0:01:21]}  Nxe3 {[%clk 0:01:46]} 18. fxe3 {[%clk 0:01:22]}  Be5 {[%clk 0:01:45]} 19. Ne2 {[%clk 0:01:09]}  a4 {[%clk 0:01:39]} 20. c3 {[%clk 0:00:57]}  Ra5 {[%clk 0:01:33]} 21. b4 {[%clk 0:00:48]}  axb3 {[%clk 0:01:31]} 22. Qxb3 {[%clk 0:00:41]}  Ra7 {[%clk 0:01:24]} 23. Rf1 {[%clk 0:00:20]}  Rfa8 {[%clk 0:01:23]} 24. Bg4 {[%clk 0:00:14]}  f5 {[%clk 0:01:16]} 25. Bf3 {[%clk 0:00:14]}  Bg7 {[%clk 0:01:05]} 26. Nd4 {[%clk 0:00:09]}  Qg5 {[%clk 0:00:35]} 27. Nxe6 {[%clk 0:00:08]}  Qxe3+ {[%clk 0:00:35]} 28. Kh1 {[%clk 0:00:08]}  Rxa3 {[%clk 0:00:13]} 29. Qc4 {[%clk 0:00:08]}  dxc4 {[%clk 0:00:12]} 30. Bd5 {[%clk 0:00:06]}  Kh8 {[%clk 0:00:12]} 31. Rxb7 {[%clk 0:00:06]}  Bxc3 {[%clk 0:00:09]} 32. Bxc6 {[%clk 0:00:04]}  Ra1 {[%clk 0:00:08]} 33. Rxa1 {[%clk 0:00:02]}  Rxa1+ {[%clk 0:00:08]} 34. Kh2 {[%clk 0:00:03]}  Qe5+ {[%clk 0:00:08]} 35. g3 {[%clk 0:00:02]}  Qe2+ {[%clk 0:00:07]} 36. Bg2 {[%clk 0:00:02]}  Qxe6 {[%clk 0:00:06]} 37. Rb8+ {[%clk 0:00:02]}  Kg7 {[%clk 0:00:06]} 38. Rb7+ {[%clk 0:00:03]}  Kh6 {[%clk 0:00:06]} 39. Rc7 {[%clk 0:00:01]}  Qe5 {[%clk 0:00:06]} 40. c6 {[%clk 0:00:02]}  Be1 {[%clk 0:00:05]} 41. Rxh7+ {[%clk 0:00:02]}  Kxh7 {[%clk 0:00:05]} 42. c7 {[%clk 0:00:02]}  Qxg3+ {[%clk 0:00:05]} 43. Kh1 {[%clk 0:00:01]}  Bf2+ {[%clk 0:00:06]} 44. Bf1 {[%clk 0:00:01]}  Rxf1# {[%clk 0:00:07]} 0-1


[Site "https://www.chess.com"]

[Event "Titled Tuesday Blitz December 27 Early 2022"]
[White "Hasangatin, Ramil"]
[Black "Timofeev, Artyom"]
[WhiteFideId "4122160"]
[BlackFideId "4140419"]
[WhiteElo "2457"]
[BlackElo "2567"]
[Result "0-1"]
[Round "05"]
[TimeControl "180+2"]
[Date "2022.12.27"]
[WhiteClock "0:00:04"]
[BlackClock "0:00:32"]

1. e4 {[%clk 0:02:54]}  d6 {[%clk 0:02:59]} 2. d4 {[%clk 0:02:53]}  Nf6 {[%clk 0:02:58]} 3. Nc3 {[%clk 0:02:54]}  g6 {[%clk 0:02:58]} 4. h3 {[%clk 0:02:54]}  Bg7 {[%clk 0:02:57]} 5. Be3 {[%clk 0:02:54]}  a6 {[%clk 0:02:52]} 6. a4 {[%clk 0:02:53]}  b6 {[%clk 0:02:49]} 7. Nf3 {[%clk 0:02:54]}  Bb7 {[%clk 0:02:49]} 8. Bd3 {[%clk 0:02:54]}  O-O {[%clk 0:02:49]} 9. O-O {[%clk 0:02:54]}  e6 {[%clk 0:02:47]} 10. Re1 {[%clk 0:02:53]}  Nbd7 {[%clk 0:02:45]} 11. Qd2 {[%clk 0:02:53]}  c5 {[%clk 0:02:42]} 12. Bh6 {[%clk 0:02:52]}  cxd4 {[%clk 0:02:39]} 13. Bxg7 {[%clk 0:02:49]}  Kxg7 {[%clk 0:02:39]} 14. Nxd4 {[%clk 0:02:49]}  Qc7 {[%clk 0:02:38]} 15. Rad1 {[%clk 0:02:40]}  Rad8 {[%clk 0:02:33]} 16. Nb3 {[%clk 0:02:19]}  Ne5 {[%clk 0:02:08]} 17. Bf1 {[%clk 0:02:02]}  Rfe8 {[%clk 0:02:06]} 18. Qd4 {[%clk 0:02:00]}  Nc6 {[%clk 0:02:01]} 19. Qe3 {[%clk 0:01:50]}  e5 {[%clk 0:01:55]} 20. Rd2 {[%clk 0:01:33]}  Ne7 {[%clk 0:01:54]} 21. Red1 {[%clk 0:00:50]}  d5 {[%clk 0:01:54]} 22. exd5 {[%clk 0:00:50]}  Nexd5 {[%clk 0:01:54]} 23. Nxd5 {[%clk 0:00:50]}  Rxd5 {[%clk 0:01:53]} 24. c4 {[%clk 0:00:35]}  Rxd2 {[%clk 0:01:50]} 25. Rxd2 {[%clk 0:00:35]}  Bc6 {[%clk 0:01:32]} 26. c5 {[%clk 0:00:20]}  b5 {[%clk 0:01:18]} 27. axb5 {[%clk 0:00:19]}  axb5 {[%clk 0:01:18]} 28. Rd6 {[%clk 0:00:16]}  Ne4 {[%clk 0:01:09]} 29. Rd1 {[%clk 0:00:16]}  Re6 {[%clk 0:00:54]} 30. Bd3 {[%clk 0:00:16]}  Nf6 {[%clk 0:00:54]} 31. Qe2 {[%clk 0:00:13]}  Nd5 {[%clk 0:00:49]} 32. Qe1 {[%clk 0:00:11]}  Nf4 {[%clk 0:00:47]} 33. Be4 {[%clk 0:00:11]}  h5 {[%clk 0:00:43]} 34. Kh2 {[%clk 0:00:09]}  h4 {[%clk 0:00:42]} 35. f3 {[%clk 0:00:05]}  Qe7 {[%clk 0:00:38]} 36. Bxc6 {[%clk 0:00:05]}  Rxc6 {[%clk 0:00:38]} 37. Qe4 {[%clk 0:00:04]}  Qg5 {[%clk 0:00:35]} 38. Rg1 {[%clk 0:00:04]}  Qg3+ {[%clk 0:00:32]} 39. Kh1 {[%clk 0:00:04]}  Nxh3 {[%clk 0:00:32]} 0-1


[Site "https://www.chess.com"]